fUST/lending_fUST_20250720
["ID","MTS","AMOUNT","RATE_DAILY","PERIOD"]
[373487682,1753020659064,-460.0,0.00017808,2]
[373487683,1753020659073,-566.01,0.00017808,2]
[373487684,1753020659082,-460.0,0.00017808,2]
[373487685,1753020659092,-368.04413581,0.00017808,2]
[373487686,1753020659101,-460.0,0.00017808,2]
[373487687,1753020659110,-460.0,0.00017808,2]
[373487688,1753020659119,-460.0,0.00017808,2]
[373487689,1753020659129,-460.0,0.00017808,2]
[373487690,1753020659138,-460.0,0.00017808,2]
[373487691,1753020659151,-1279.26912068,0.00017868,2]
[373487692,1753020659161,-1500.0,0.00017868,2]
[373487693,1753020659170,-151.0,0.000179,2]
[373487694,1753020659181,-5225.68678819,0.000179,2]
[373487695,1753020659190,-420.0,0.00017963,2]
[373487696,1753020659199,-160.0,0.00017993,2]
[373487697,1753020659209,-1029.61696009,0.00018068,2]
[373487698,1753020659218,-437.93175216,0.00018082,2]
[373487699,1753020659227,-259.33486079,0.00018082,2]
[373487700,1753020659237,-460.0,0.00018082,2]
[373487701,1753020659246,-460.0,0.00018082,2]
[373487702,1753020659256,-460.0,0.00018082,2]
[373487703,1753020659265,-460.0,0.00018082,2]
[373487704,1753020659275,-460.0,0.00018082,2]
[373487705,1753020659286,-460.0,0.00018082,2]
[373487706,1753020659296,-503.23909564,0.00018082,2]
[373487707,1753020659305,-460.0,0.00018082,2]
[373487708,1753020659315,-583.95,0.00018082,2]
[373487709,1753020659326,-460.0,0.00018082,2]
[373487710,1753020659336,-460.0,0.00018082,2]
[373487711,1753020659346,-3260.6,0.00018082,2]
[373487712,1753020659355,-460.0,0.00018082,2]
[373487713,1753020659365,-460.0,0.00018082,2]
[373487714,1753020659374,-460.0,0.00018082,2]
[373487715,1753020659384,-460.0,0.00018082,2]
[373487716,1753020659393,-460.0,0.00018082,2]
[373487717,1753020659402,-460.0,0.00018082,2]
[373487718,1753020659411,-460.0,0.00018082,2]
[373487719,1753020659421,-460.0,0.00018082,2]
[373487720,1753020659432,-460.0,0.00018082,2]
[373487721,1753020659442,-460.0,0.00018082,2]
[373487722,1753020659451,-460.0,0.00018082,2]
[373487723,1753020659460,-460.0,0.00018082,2]
[373487724,1753020659469,-460.0,0.00018082,2]
[373487725,1753020659478,-460.0,0.00018082,2]
[373487726,1753020659488,-460.0,0.00018082,2]
[373487727,1753020659497,-596.35,0.00018082,2]
[373487728,1753020659506,-214.13485886,0.00018082,2]
[373487729,1753020659516,-460.0,0.00018082,2]
[373487730,1753020659525,-460.0,0.00018082,2]
[373487731,1753020659534,-460.0,0.00018082,2]
[373487732,1753020659543,-460.0,0.00018082,2]
[373487733,1753020659554,-460.0,0.00018082,2]
[373487734,1753020659563,-460.0,0.00018082,2]
[373487735,1753020659573,-460.0,0.00018082,2]
[373487736,1753020659582,-460.0,0.00018082,2]
[373487737,1753020659592,-460.0,0.00018082,2]
[373487738,1753020659601,-460.0,0.00018082,2]
[373487739,1753020659610,-473.87,0.00018082,2]
[373487740,1753020659620,-1631.12,0.00018082,2]
[373487741,1753020659629,-460.0,0.00018082,2]
[373487742,1753020659639,-460.0,0.00018082,2]
[373487743,1753020659648,-580.97,0.00018082,2]
[373487744,1753020659657,-151.0,0.00018082,2]
[373487745,1753020659667,-151.0,0.00018082,2]
[373487746,1753020659677,-509.61271658,0.00018082,2]
[373487747,1753020659686,-460.0,0.00018082,2]
[373487748,1753020659695,-151.0,0.00018082,2]
[373487749,1753020659705,-460.0,0.00018082,2]
[373487750,1753020659715,-460.0,0.00018082,2]
[373487751,1753020659725,-460.0,0.00018082,2]
[373487752,1753020659734,-258.514583,0.00018082,2]
[373487753,1753020659743,-460.0,0.00018082,2]
[373487754,1753020659754,-460.0,0.00018082,2]
[373487755,1753020659767,-460.0,0.00018082,2]
[373487756,1753020659777,-460.0,0.00018082,2]
[373487757,1753020659787,-460.0,0.00018082,2]
[373487758,1753020659796,-460.0,0.00018082,2]
[373487759,1753020659806,-460.0,0.00018082,2]
[373487760,1753020659815,-151.0,0.00018082,2]
[373487761,1753020659825,-460.0,0.00018082,2]
[373487762,1753020659835,-189.582008,0.00018082,2]
[373487763,1753020659845,-460.0,0.00018082,2]
[373487764,1753020659855,-624.91,0.00018082,2]
[373487765,1753020659864,-151.0,0.00018082,2]
[373487766,1753020659874,-151.0,0.00018082,2]
[373487767,1753020659883,-460.0,0.00018082,2]
[373487768,1753020659893,-460.0,0.00018082,2]
[373487769,1753020659903,-460.0,0.00018082,2]
[373487770,1753020659913,-460.0,0.00018082,2]
[373487771,1753020659923,-460.0,0.00018082,2]
[373487772,1753020659932,-460.0,0.00018082,2]
[373487773,1753020659942,-460.0,0.00018082,2]
[373487774,1753020659951,-460.0,0.00018082,2]
[373487775,1753020659961,-704.97,0.00018082,2]
[373487776,1753020659970,-460.0,0.00018082,2]
[373487777,1753020659980,-460.0,0.00018082,2]
[373487778,1753020659989,-217.99723468,0.00018082,2]
[373487779,1753020659999,-460.0,0.00018082,2]
[373487780,1753020660009,-1930.36,0.00018082,2]
[373487781,1753020660019,-460.0,0.00018082,2]
[373487782,1753020660029,-2848.93,0.00018082,2]
[373487783,1753020660039,-460.0,0.00018082,2]
[373487784,1753020660049,-580.82,0.00018082,2]
[373487785,1753020660059,-460.0,0.00018082,2]
[373487786,1753020660069,-467.11,0.00018082,2]
[373487787,1753020660079,-217.935232,0.00018082,2]
[373487788,1753020660088,-460.0,0.00018082,2]
[373487789,1753020660098,-217.935232,0.00018082,2]
[373487790,1753020660107,-466.93,0.00018082,2]
[373487791,1753020660117,-460.0,0.00018082,2]
[373487792,1753020660126,-562.08,0.00018082,2]
[373487793,1753020660206,-460.0,0.00018082,2]
[373487794,1753020660216,-460.0,0.00018082,2]
[373487795,1753020660226,-194.185857,0.00018082,2]
[373487796,1753020660236,-460.0,0.00018082,2]
[373487797,1753020660245,-1389.72,0.00018082,2]
[373487798,1753020660255,-194.185857,0.00018082,2]
[373487799,1753020660265,-489.9,0.00018082,2]
[373487800,1753020660274,-588.3,0.00018082,2]
[373487801,1753020660284,-460.0,0.00018082,2]
[373487802,1753020660294,-460.0,0.00018082,2]
[373487803,1753020660306,-1495.18,0.00018082,2]
[373487804,1753020660316,-460.0,0.00018082,2]
[373487805,1753020660327,-786.73,0.00018082,2]
[373487806,1753020660337,-1124.57,0.00018082,2]
[373487807,1753020660347,-498.39,0.00018082,2]
[373487808,1753020660357,-485.76,0.00018082,2]
[373487809,1753020660367,-569.831812,0.00018082,2]
[373487810,1753020660376,-460.0,0.00018082,2]
[373487811,1753020660386,-569.831812,0.00018082,2]
[373487812,1753020660396,-1962.8,0.00018082,2]
[373487813,1753020660406,-460.0,0.00018082,2]
[373487814,1753020660416,-460.0,0.00018082,2]
[373487815,1753020660427,-151.0,0.00018082,2]
[373487816,1753020660436,-460.0,0.00018082,2]
[373487817,1753020660446,-574.14,0.00018082,2]
[373487818,1753020660455,-460.0,0.00018082,2]
[373487819,1753020660465,-460.0,0.00018082,2]
[373487820,1753020660475,-460.0,0.00018082,2]
[373487821,1753020660484,-1557.18,0.00018082,2]
[373487822,1753020660494,-624.15,0.00018082,2]
[373487823,1753020660503,-522.82,0.00018082,2]
[373487824,1753020660513,-529.99,0.00018082,2]
[373487825,1753020660524,-460.0,0.00018082,2]
[373487826,1753020660536,-460.0,0.00018082,2]
[373487827,1753020660546,-1187.1,0.00018082,2]
[373487828,1753020660555,-460.0,0.00018082,2]
[373487829,1753020660564,-460.0,0.00018082,2]
[373487830,1753020660574,-460.0,0.00018082,2]
[373487831,1753020660583,-460.0,0.00018082,2]
[373487832,1753020660592,-460.0,0.00018082,2]
[373487833,1753020660601,-460.0,0.00018082,2]
[373487834,1753020660611,-460.0,0.00018082,2]
[373487835,1753020660620,-460.0,0.00018082,2]
[373487836,1753020660630,-460.0,0.00018082,2]
[373487837,1753020660639,-460.0,0.00018082,2]
[373487838,1753020660649,-596.16,0.00018082,2]
[373487839,1753020660658,-460.0,0.00018082,2]
[373487840,1753020660668,-1357.25,0.00018082,2]
[373487841,1753020660679,-612.44,0.00018082,2]
[373487842,1753020660689,-460.0,0.00018082,2]
[373487843,1753020660698,-460.0,0.00018082,2]
[373487844,1753020660708,-2100.62,0.00018082,2]
[373487845,1753020660718,-460.0,0.00018082,2]
[373487846,1753020660727,-2549.97,0.00018082,2]
[373487847,1753020660737,-460.0,0.00018082,2]
[373487848,1753020660746,-460.0,0.00018082,2]
[373487849,1753020660759,-460.0,0.00018082,2]
[373487850,1753020660769,-460.0,0.00018082,2]
[373487851,1753020660778,-460.0,0.00018082,2]
[373487852,1753020660788,-650.64,0.00018082,2]
[373487853,1753020660798,-460.0,0.00018082,2]
[373487854,1753020660807,-709.69,0.00018082,2]
[373487855,1753020660816,-654.51,0.00018082,2]
[373487856,1753020660825,-460.0,0.00018082,2]
[373487857,1753020660837,-566.01,0.00018082,2]
[373487858,1753020660846,-460.0,0.00018082,2]
[373487859,1753020660856,-460.0,0.00018082,2]
[373487860,1753020660865,-460.0,0.00018082,2]
[373487861,1753020660875,-460.0,0.00018082,2]
[373487862,1753020660884,-460.0,0.00018082,2]
[373487863,1753020660893,-460.0,0.00018082,2]
[373487864,1753020660902,-151.0,0.00018126,2]
[373487865,1753020660912,-151.0,0.00018126,2]
[373487866,1753020660922,-1000.0,0.00018139,2]
[373487867,1753020660932,-500.0,0.00018139,2]
[373487868,1753020660942,-5225.68678797,0.00018141,2]
[373487869,1753020660951,-890.5,0.0001816,2]
[373487870,1753020660960,-214.01753664,0.00018169,2]
[373487871,1753020660969,-1000.0,0.00018196,2]
[373487872,1753020660978,-151.0,0.000182,2]
[373487873,1753020660986,-6588.07574028,0.0001832,2]
[373487874,1753020660995,-1187.31488757,0.00018337,2]
[373487875,1753020661004,-460.0,0.00018356,2]
[373487876,1753020661015,-460.0,0.00018356,2]
[373487877,1753020661024,-460.0,0.00018356,2]
[373487878,1753020661033,-460.0,0.00018356,2]
[373487879,1753020661042,-460.0,0.00018356,2]
[373487880,1753020661051,-460.0,0.00018356,2]
[373487881,1753020661060,-460.0,0.00018356,2]
[373487882,1753020661069,-583.95,0.00018356,2]
[373487883,1753020661077,-460.0,0.00018356,2]
[373487884,1753020661087,-460.0,0.00018356,2]
[373487885,1753020661097,-3260.6,0.00018356,2]
[373487886,1753020661106,-460.0,0.00018356,2]
[373487887,1753020661115,-460.0,0.00018356,2]
[373487888,1753020661124,-460.0,0.00018356,2]
[373487889,1753020661133,-460.0,0.00018356,2]
[373487890,1753020661142,-460.0,0.00018356,2]
[373487891,1753020661150,-460.0,0.00018356,2]
[373487892,1753020661159,-460.0,0.00018356,2]
[373487893,1753020661168,-460.0,0.00018356,2]
[373487894,1753020661178,-460.0,0.00018356,2]
[373487895,1753020661187,-460.0,0.00018356,2]
[373487896,1753020661196,-460.0,0.00018356,2]
[373487897,1753020661204,-460.0,0.00018356,2]
[373487898,1753020661213,-460.0,0.00018356,2]
[373487899,1753020661223,-151.0,0.00018356,2]
[373487900,1753020661232,-152.090588,0.00018356,2]
[373487901,1753020661241,-455.40204871,0.00018356,2]
[373487902,1753020661250,-596.35,0.00018356,2]
[373487903,1753020661259,-460.0,0.00018356,2]
[373487904,1753020661269,-460.0,0.00018356,2]
[373487905,1753020661278,-460.0,0.00018356,2]
[373487906,1753020661287,-460.0,0.00018356,2]
[373487907,1753020661296,-460.0,0.00018356,2]
[373487908,1753020661305,-460.0,0.00018356,2]
[373487909,1753020661314,-460.0,0.00018356,2]
[373487910,1753020661322,-460.0,0.00018356,2]
[373487911,1753020661396,-460.0,0.00018356,2]
[373487912,1753020661406,-464.87267364,0.00018356,2]
[373487913,1753020661415,-1631.12,0.00018356,2]
[373487914,1753020661425,-460.0,0.00018356,2]
[373487915,1753020661435,-460.0,0.00018356,2]
[373487916,1753020661444,-580.97,0.00018356,2]
[373487917,1753020661454,-460.0,0.00018356,2]
[373487918,1753020661464,-460.0,0.00018356,2]
[373487919,1753020661473,-460.0,0.00018356,2]
[373487920,1753020661483,-460.0,0.00018356,2]
[373487921,1753020661492,-460.0,0.00018356,2]
[373487922,1753020661502,-460.0,0.00018356,2]
[373487923,1753020661511,-460.0,0.00018356,2]
[373487924,1753020661521,-460.0,0.00018356,2]
[373487925,1753020661530,-460.0,0.00018356,2]
[373487926,1753020661539,-460.0,0.00018356,2]
[373487927,1753020661549,-460.0,0.00018356,2]
[373487928,1753020661558,-460.0,0.00018356,2]
[373487929,1753020661567,-624.91,0.00018356,2]
[373487930,1753020661577,-151.0,0.00018356,2]
[373487931,1753020661586,-205.85073227,0.00018356,2]
[373487932,1753020661595,-460.0,0.00018356,2]
[373487933,1753020661604,-460.0,0.00018356,2]
[373487934,1753020661613,-460.0,0.00018356,2]
[373487935,1753020661622,-336.05820881,0.00018356,2]
[373487936,1753020661631,-460.0,0.00018356,2]
[373487937,1753020661640,-460.0,0.00018356,2]
[373487938,1753020661650,-460.0,0.00018356,2]
[373487939,1753020661659,-704.97,0.00018356,2]
[373487940,1753020661668,-460.0,0.00018356,2]
[373487941,1753020661678,-460.0,0.00018356,2]
[373487942,1753020661689,-460.0,0.00018356,2]
[373487943,1753020661699,-1930.36,0.00018356,2]
[373487944,1753020661709,-460.0,0.00018356,2]
[373487945,1753020661718,-2848.93,0.00018356,2]
[373487946,1753020661728,-460.0,0.00018356,2]
[373487947,1753020661738,-580.82,0.00018356,2]
[373487948,1753020661748,-460.0,0.00018356,2]
[373487949,1753020661760,-467.11,0.00018356,2]
[373487950,1753020661769,-460.0,0.00018356,2]
[373487951,1753020661778,-466.93,0.00018356,2]
[373487952,1753020661788,-216.40134364,0.00018356,2]
[373487953,1753020661798,-562.08,0.00018356,2]
[373487954,1753020661808,-151.0,0.00018356,2]
[373487955,1753020661817,-460.0,0.00018356,2]
[373487956,1753020661826,-460.0,0.00018356,2]
[373487957,1753020661837,-151.0,0.00018356,2]
[373487958,1753020661847,-460.0,0.00018356,2]
[373487959,1753020661857,-151.0,0.00018356,2]
[373487960,1753020661866,-1389.72,0.00018356,2]
[373487961,1753020661876,-489.9,0.00018356,2]
[373487962,1753020661885,-588.3,0.00018356,2]
[373487963,1753020661894,-460.0,0.00018356,2]
[373487964,1753020661904,-460.0,0.00018356,2]
[373487965,1753020661915,-1495.18,0.00018356,2]
[373487966,1753020661925,-460.0,0.00018356,2]
[373487967,1753020661935,-786.73,0.00018356,2]
[373487968,1753020661944,-1124.57,0.00018356,2]
[373487969,1753020661953,-498.39,0.00018356,2]
[373487970,1753020661962,-485.76,0.00018356,2]
[373487971,1753020661972,-1962.8,0.00018356,2]
[373487972,1753020661981,-460.0,0.00018356,2]
[373487973,1753020661990,-460.0,0.00018356,2]
[373487974,1753020661999,-151.0,0.00018356,2]
[373487975,1753020662008,-298.045214,0.00018356,2]
[373487976,1753020662018,-298.045214,0.00018356,2]
[373487977,1753020662027,-460.0,0.00018356,2]
[373487978,1753020662036,-225.03,0.00018356,2]
[373487979,1753020662045,-574.14,0.00018356,2]
[373487980,1753020662054,-460.0,0.00018356,2]
[373487981,1753020662063,-460.0,0.00018356,2]
[373487982,1753020662073,-460.0,0.00018356,2]
[373487983,1753020662082,-1557.18,0.00018356,2]
[373487984,1753020662092,-151.0,0.00018356,2]
[373487985,1753020662102,-624.15,0.00018356,2]
[373487986,1753020662111,-522.82,0.00018356,2]
[373487987,1753020662121,-151.0,0.00018356,2]
[373487988,1753020662130,-529.99,0.00018356,2]
[373487989,1753020662140,-460.0,0.00018356,2]
[373487990,1753020662150,-1187.1,0.00018356,2]
[373487991,1753020662159,-460.0,0.00018356,2]
[373487992,1753020662169,-460.0,0.00018356,2]
[373487993,1753020662178,-460.0,0.00018356,2]
[373487994,1753020662188,-460.0,0.00018356,2]
[373487995,1753020662197,-151.0,0.00018356,2]
[373487996,1753020662206,-460.0,0.00018356,2]
[373487997,1753020662216,-460.0,0.00018356,2]
[373487998,1753020662225,-460.0,0.00018356,2]
[373487999,1753020662234,-460.0,0.00018356,2]
[373488000,1753020662244,-460.0,0.00018356,2]
[373488001,1753020662254,-460.0,0.00018356,2]
[373488002,1753020662264,-596.16,0.00018356,2]
[373488003,1753020662274,-460.0,0.00018356,2]
[373488004,1753020662284,-1357.25,0.00018356,2]
[373488005,1753020662293,-612.44,0.00018356,2]
[373488006,1753020662303,-460.0,0.00018356,2]
[373488007,1753020662313,-460.0,0.00018356,2]
[373488008,1753020662322,-2100.62,0.00018356,2]
[373488009,1753020662333,-469.84038484,0.00018356,2]
[373488010,1753020662342,-2549.97,0.00018356,2]
[373488011,1753020662353,-460.0,0.00018356,2]
[373488012,1753020662362,-356.92766861,0.00018356,2]
[373488013,1753020662372,-460.0,0.00018356,2]
[373488014,1753020662382,-460.0,0.00018356,2]
[373488015,1753020662392,-460.0,0.00018356,2]
[373488016,1753020662402,-650.64,0.00018356,2]
[373488017,1753020662412,-460.0,0.00018356,2]
[373488018,1753020662423,-709.69,0.00018356,2]
[373488019,1753020662435,-654.51,0.00018356,2]
[373488020,1753020662506,-460.0,0.00018356,2]
[373488021,1753020662516,-566.01,0.00018356,2]
[373488022,1753020662526,-259.50358371,0.00018356,2]
[373488023,1753020662536,-460.0,0.00018356,2]
[373488024,1753020662546,-460.0,0.00018356,2]
[373488025,1753020662556,-460.0,0.00018356,2]
[373488026,1753020662565,-460.0,0.00018356,2]
[373488027,1753020662575,-460.0,0.00018356,2]
[373488028,1753020662584,-5225.68678797,0.00018383,2]
[373488029,1753020662593,-6588.07574028,0.000184,2]
[373488030,1753020662602,-1500.0,0.00018416,2]
[373488031,1753020662612,-500.0,0.00018467,2]
[373488032,1753020662621,-500.0,0.00018467,2]
[373488033,1753020662630,-150.0,0.00018488,2]
[373488034,1753020662639,-500.0,0.00018489,2]
[373488035,1753020662649,-500.0,0.00018489,2]
[373488036,1753020662658,-158.19550401,0.00018495,2]
[373488037,1753020662668,-500.0,0.00018495,2]
[373488038,1753020662678,-593.68281998,0.00018495,2]
[373488039,1753020662688,-151.0,0.000185,2]
[373488040,1753020662698,-1038.22962889,0.00018538,2]
[373488041,1753020662707,-260.0,0.00018541,2]
[373488042,1753020662717,-500.0,0.0001861,2]
[373488043,1753020662727,-160.24324187,0.0001861,2]
[373488044,1753020662736,-491.32757784,0.0001861,2]
[373488045,1753020662746,-500.0,0.0001861,2]
[373488046,1753020662759,-500.0,0.0001861,2]
[373488047,1753020662769,-550.41498656,0.0001861,2]
[373488048,1753020662778,-5225.68678797,0.00018624,2]
[373488049,1753020662788,-460.0,0.0001863,2]
[373488050,1753020662798,-460.0,0.0001863,2]
[373488051,1753020662808,-460.0,0.0001863,2]
[373488052,1753020662817,-460.0,0.0001863,2]
[373488053,1753020662828,-460.0,0.0001863,2]
[373488054,1753020662838,-460.0,0.0001863,2]
[373488055,1753020662847,-330.29447775,0.0001863,2]
[373488056,1753020662857,-583.95,0.0001863,2]
[373488057,1753020662867,-460.0,0.0001863,2]
[373488058,1753020662877,-3260.6,0.0001863,2]
[373488059,1753020662886,-462.34,0.0001863,2]
[373488060,1753020662895,-460.0,0.0001863,2]
[373488061,1753020662905,-460.0,0.0001863,2]
[373488062,1753020662914,-471.69979971,0.0001863,2]
[373488063,1753020662924,-460.0,0.0001863,2]
[373488064,1753020662935,-460.0,0.0001863,2]
[373488065,1753020662945,-460.0,0.0001863,2]
[373488066,1753020662954,-460.0,0.0001863,2]
[373488067,1753020662963,-460.0,0.0001863,2]
[373488068,1753020662972,-460.0,0.0001863,2]
[373488069,1753020662981,-460.0,0.0001863,2]
[373488070,1753020662990,-460.0,0.0001863,2]
[373488071,1753020663003,-596.35,0.0001863,2]
[373488072,1753020663022,-460.0,0.0001863,2]
[373488073,1753020663038,-460.0,0.0001863,2]
[373488074,1753020663057,-460.0,0.0001863,2]
[373488075,1753020663078,-460.0,0.0001863,2]
[373488076,1753020663095,-460.0,0.0001863,2]
[373488077,1753020663113,-218.18567102,0.0001863,2]
[373488078,1753020663128,-460.0,0.0001863,2]
[373488079,1753020663145,-460.0,0.0001863,2]
[373488080,1753020663164,-460.0,0.0001863,2]
[373488081,1753020663185,-1631.12,0.0001863,2]
[373488082,1753020663202,-460.0,0.0001863,2]
[373488083,1753020663220,-460.0,0.0001863,2]
[373488084,1753020663237,-580.97,0.0001863,2]
[373488085,1753020663253,-151.0,0.0001863,2]
[373488086,1753020663267,-151.0,0.0001863,2]
[373488087,1753020663282,-460.0,0.0001863,2]
[373488088,1753020663296,-151.0,0.0001863,2]
[373488089,1753020663311,-460.0,0.0001863,2]
[373488090,1753020663326,-460.0,0.0001863,2]
[373488091,1753020663341,-460.0,0.0001863,2]
[373488092,1753020663356,-460.0,0.0001863,2]
[373488093,1753020663371,-460.0,0.0001863,2]
[373488094,1753020663385,-460.0,0.0001863,2]
[373488095,1753020663400,-460.0,0.0001863,2]
[373488096,1753020663414,-460.0,0.0001863,2]
[373488097,1753020663430,-460.0,0.0001863,2]
[373488098,1753020663445,-151.0,0.0001863,2]
[373488099,1753020663461,-460.0,0.0001863,2]
[373488100,1753020663475,-460.0,0.0001863,2]
[373488101,1753020663491,-624.91,0.0001863,2]
[373488102,1753020663506,-151.0,0.0001863,2]
[373488103,1753020663521,-151.0,0.0001863,2]
[373488104,1753020663536,-460.0,0.0001863,2]
[373488105,1753020663551,-460.0,0.0001863,2]
[373488106,1753020663566,-460.0,0.0001863,2]
[373488107,1753020663582,-460.0,0.0001863,2]
[373488108,1753020663596,-460.0,0.0001863,2]
[373488109,1753020663612,-460.0,0.0001863,2]
[373488110,1753020663627,-704.97,0.0001863,2]
[373488111,1753020663642,-460.0,0.0001863,2]
[373488112,1753020663658,-460.0,0.0001863,2]
[373488113,1753020663675,-460.0,0.0001863,2]
[373488114,1753020663692,-1930.36,0.0001863,2]
[373488115,1753020663708,-460.0,0.0001863,2]
[373488116,1753020663725,-2848.93,0.0001863,2]
[373488117,1753020663741,-460.0,0.0001863,2]
[373488118,1753020663759,-580.82,0.0001863,2]
[373488119,1753020663774,-503.00591543,0.0001863,2]
[373488120,1753020663883,-467.11,0.0001863,2]
[373488121,1753020663896,-217.935232,0.0001863,2]
[373488122,1753020663906,-460.0,0.0001863,2]
[373488123,1753020663916,-217.935232,0.0001863,2]
[373488124,1753020663926,-466.93,0.0001863,2]
[373488125,1753020663936,-562.08,0.0001863,2]
[373488126,1753020663946,-460.0,0.0001863,2]
[373488127,1753020663956,-460.0,0.0001863,2]
[373488128,1753020663966,-194.185857,0.0001863,2]
[373488129,1753020663975,-460.0,0.0001863,2]
[373488130,1753020663985,-1389.72,0.0001863,2]
[373488131,1753020663995,-194.185857,0.0001863,2]
[373488132,1753020664004,-489.9,0.0001863,2]
[373488133,1753020664013,-588.3,0.0001863,2]
[373488134,1753020664023,-460.0,0.0001863,2]
[373488135,1753020664033,-460.0,0.0001863,2]
[373488136,1753020664043,-1495.18,0.0001863,2]
[373488137,1753020664052,-460.0,0.0001863,2]
[373488138,1753020664062,-786.73,0.0001863,2]
[373488139,1753020664071,-1124.57,0.0001863,2]
[373488140,1753020664081,-498.39,0.0001863,2]
[373488141,1753020664091,-485.76,0.0001863,2]
[373488142,1753020664100,-569.831812,0.0001863,2]
[373488143,1753020664110,-569.831812,0.0001863,2]
[373488144,1753020664125,-1962.8,0.0001863,2]
[373488145,1753020664135,-460.0,0.0001863,2]
[373488146,1753020664144,-460.0,0.0001863,2]
[373488147,1753020664153,-151.0,0.0001863,2]
[373488148,1753020664163,-460.0,0.0001863,2]
[373488149,1753020664172,-574.14,0.0001863,2]
[373488150,1753020664182,-460.0,0.0001863,2]
[373488151,1753020664192,-460.0,0.0001863,2]
[373488152,1753020664202,-460.0,0.0001863,2]
[373488153,1753020664212,-1557.18,0.0001863,2]
[373488154,1753020664221,-624.15,0.0001863,2]
[373488155,1753020664231,-522.82,0.0001863,2]
[373488156,1753020664240,-529.99,0.0001863,2]
[373488157,1753020664251,-460.0,0.0001863,2]
[373488158,1753020664261,-1187.1,0.0001863,2]
[373488159,1753020664271,-283.68467186,0.0001863,2]
[373488160,1753020664280,-214.12,0.0001863,2]
[373488161,1753020664290,-460.0,0.0001863,2]
[373488162,1753020664299,-460.0,0.0001863,2]
[373488163,1753020664308,-460.0,0.0001863,2]
[373488164,1753020664318,-460.0,0.0001863,2]
[373488165,1753020664327,-460.0,0.0001863,2]
[373488166,1753020664337,-460.0,0.0001863,2]
[373488167,1753020664346,-460.0,0.0001863,2]
[373488168,1753020664356,-460.0,0.0001863,2]
[373488169,1753020664366,-596.16,0.0001863,2]
[373488170,1753020664377,-460.0,0.0001863,2]
[373488171,1753020664386,-1357.25,0.0001863,2]
[373488172,1753020664396,-612.44,0.0001863,2]
[373488173,1753020664406,-460.0,0.0001863,2]
[373488174,1753020664415,-205.45351343,0.0001863,2]
[373488175,1753020664425,-2100.62,0.0001863,2]
[373488176,1753020664436,-2549.97,0.0001863,2]
[373488177,1753020664446,-460.0,0.0001863,2]
[373488178,1753020664455,-373.2597374,0.0001863,2]
[373488179,1753020664465,-460.0,0.0001863,2]
[373488180,1753020664475,-460.0,0.0001863,2]
[373488181,1753020664485,-650.64,0.0001863,2]